fUST/lending_fUST_20240928
["ID","MTS","AMOUNT","RATE_DAILY","PERIOD"]
[339360629,1727471478080,-437.18588385,0.00034499,2]
[339360630,1727471478091,-223.31502699,0.00034499,2]
[339360631,1727471478103,-1018.62915952,0.00034499,2]
[339360632,1727471478113,-904.72641,0.00034499,2]
[339360633,1727471478123,-175.43362159,0.00034499,2]
[339360634,1727471478133,-458.49666166,0.00034499,2]
[339360635,1727471478144,-222.4668995,0.00034499,2]
[339360636,1727471478155,-1002857.5823478,0.00034499,90]
[339360637,1727471478166,-863.585956,0.00034499,35]
[339360638,1727471478175,-1500.0,0.00034499,40]
[339360639,1727471478184,-1000.0,0.00034499,90]
[339360640,1727471478194,-1000.0,0.00034499,90]
[339360641,1727471478202,-253.2160417,0.00034499,30]
[339360642,1727471478212,-1000.0,0.00034499,60]
[339360643,1727471478221,-256.81168875,0.00034499,120]
[339360644,1727471478230,-1376.09350928,0.00034499,32]
[339360645,1727471478240,-515.65835201,0.00034499,14]
[339360646,1727471478250,-453.79400696,0.00034499,120]
[339360647,1727471478259,-671.83116345,0.00034499,120]
[339360648,1727471478268,-230.71938055,0.00034499,10]
[339360649,1727471478277,-615.52659615,0.00034499,120]
[339360650,1727471478286,-870.61303675,0.00034499,120]
[339360651,1727471478295,-681.03883175,0.00034499,120]
[339360652,1727471478304,-249.88465317,0.00034499,120]
[339360653,1727471478314,-240.82074905,0.00034499,120]
[339360654,1727471478400,-292.04409158,0.00034499,120]
[339360655,1727471478409,-177.55428989,0.00034499,120]
[339360656,1727471478418,-233.41603184,0.00034499,30]
[339360657,1727471478428,-903.29600109,0.00034499,120]
[339360658,1727471478438,-366.77616214,0.00034499,30]
[339360659,1727471478448,-200.0,0.00034499,10]
[339360660,1727471478457,-494.67975316,0.00034499,120]
[339360661,1727471478466,-202.29200795,0.00034499,7]
[339360662,1727471478475,-11617.39311716,0.00034499,60]
[339360663,1727471478484,-184.75,0.00034499,30]
[339360664,1727471478493,-2480.74540207,0.00034499,120]
[339360665,1727471478503,-173.1019302,0.00034499,4]
[339360666,1727471478512,-206.5414993,0.00034499,30]
[339360667,1727471478522,-206709.7221684,0.00034499,90]
[339360668,1727471478531,-108182.08542271,0.00034499,90]
[339360669,1727471478540,-2803.0,0.00034499,120]
[339360670,1727471478549,-3021.83985795,0.00034499,2]
[339360671,1727471478559,-89237.79819138,0.00034499,2]
[339360672,1727471478569,-6445.99282748,0.00034499,2]
[339360673,1727471478578,-4149.37853243,0.00034499,2]
[339360674,1727471478587,-4120.17889329,0.00034499,2]
[339360675,1727471478596,-10096.00839139,0.00034499,2]
[339360676,1727471478605,-9829.43727123,0.00034499,2]
[339360677,1727471478615,-1516.82685259,0.00034499,2]
[339360678,1727471478624,-16523.04196039,0.00034499,2]
[339360679,1727471478635,-10054.21137931,0.00034499,2]
[339360680,1727471478645,-3057.41487927,0.00034499,2]
[339360681,1727471478654,-18088.62636341,0.00034499,2]
[339360682,1727471478664,-1522.35835708,0.00034499,2]
[339360683,1727471478675,-6210.09547099,0.00034499,2]
[339360684,1727471478684,-83213.14633361,0.00034499,2]
[339360685,1727471478694,-2596.81962493,0.00034499,120]
[339360686,1727471478703,-168.34477506,0.00034499,120]
[339360687,1727471478712,-251162.8307774,0.00034499,15]
[339360688,1727471478726,-153822.20373222,0.00034499,2]
[339360689,1727471478735,-1400.0,0.00034499,120]
[339360690,1727471478744,-21346.0,0.00034499,30]
[339360691,1727471478754,-5000.0,0.00034499,30]
[339360692,1727471478763,-702.1999809,0.00034499,35]
[339360693,1727471478773,-58570.41165356,0.00034499,60]
[339360694,1727471478782,-31373.0,0.00034499,30]
[339360695,1727471478792,-171.0568634,0.00034499,2]
[339360696,1727471478801,-830.25578671,0.00034499,2]
[339360697,1727471478810,-281.0901687,0.00034499,40]
[339360698,1727471478819,-171.0,0.00034499,6]
[339360699,1727471478829,-2743.46695523,0.00034499,4]
[339360700,1727471478840,-886.6621764,0.00034499,30]
[339360701,1727471478851,-434.8388697,0.00034499,7]
[339360702,1727471478860,-152.78478311,0.00034499,120]
[339360703,1727471478870,-1659.71752242,0.00034499,120]
[339360704,1727471478881,-259059.56507965,0.00034499,30]
[339360705,1727471478890,-11200.78165081,0.00034499,30]
[339360706,1727471478900,-10922.84180741,0.00034499,30]
[339360707,1727471478912,-3503.27627629,0.00034499,2]
[339360708,1727471478922,-21086.14315542,0.00034499,2]
[339360709,1727471478932,-389.7183634,0.00034499,120]
[339360710,1727471478942,-86904.81455042,0.00034499,7]
[339360711,1727471478953,-476.4494989,0.00034499,120]
[339360712,1727471478965,-589.7499828,0.00034499,120]
[339360713,1727471478977,-346.5,0.00034499,90]
[339360714,1727471478988,-346.5,0.00034499,120]
[339360715,1727471478998,-1753.80871787,0.00034499,120]
[339360716,1727471479010,-1180.0,0.00034499,30]
[339360717,1727471479020,-300.16123882,0.00034499,30]
[339360718,1727471479030,-235.86152224,0.00034499,5]
[339360719,1727471479041,-1235.25457108,0.00034499,20]
[339360720,1727471479051,-17771.23752437,0.00034499,10]
[339360721,1727471479061,-6557.25162166,0.00034499,2]
[339360722,1727471479072,-872.824494,0.00034499,35]
[339360723,1727471479083,-281.213485,0.00034499,120]
[339360724,1727471479093,-1000.0,0.00034499,60]
[339360725,1727471479103,-346.5,0.00034499,60]
[339360726,1727471479113,-187.16262492,0.00034499,2]
[339360727,1727471479123,-3000.0,0.00034499,101]
[339360728,1727471479134,-3000.0,0.00034499,104]
[339360729,1727471479144,-2157.19942827,0.00034499,30]
[339360730,1727471479154,-179.87459596,0.00034499,3]
[339360731,1727471479164,-1480.40540394,0.00034499,120]
[339360732,1727471479174,-512.647732,0.00034499,2]
[339360733,1727471479184,-163.19010813,0.00034499,2]
[339360734,1727471479194,-659.32078575,0.00034499,28]
[339360735,1727471479205,-20817.65007415,0.00034499,2]
[339360736,1727471479216,-46343.5748904,0.00034499,2]
[339360737,1727471479226,-753.40350186,0.00034499,21]
[339360738,1727471479236,-4328.92247888,0.00034499,10]
[339360739,1727471479246,-700.73240911,0.00034499,120]
[339360740,1727471479255,-408890.05699799,0.00034499,30]
[339360741,1727471479265,-200000.0073223,0.00034499,30]
[339360742,1727471479274,-150.0,0.00034499,30]
[339360743,1727471479284,-168.140397,0.00034499,30]
[339360744,1727471479295,-150.0,0.00034499,30]
[339360745,1727471479304,-150.0,0.00034499,30]
[339360746,1727471479314,-150.0,0.00034499,30]
[339360747,1727471479325,-150.0,0.00034499,30]
[339360748,1727471479335,-150.0,0.00034499,30]
[339360749,1727471479346,-250.0,0.00034499,30]
[339360750,1727471479355,-250.0,0.00034499,30]
[339360751,1727471479364,-250.0,0.00034499,30]
[339360752,1727471479374,-250.0,0.00034499,30]
[339360753,1727471479383,-250.0,0.00034499,30]
[339360754,1727471479392,-250.0,0.00034499,30]
[339360755,1727471479402,-250.0,0.00034499,30]
[339360756,1727471479411,-250.0,0.00034499,30]
[339360757,1727471479422,-250.0,0.00034499,30]
[339360758,1727471479432,-250.0,0.00034499,30]
[339360759,1727471479441,-250.0,0.00034499,30]
[339360760,1727471479451,-250.0,0.00034499,30]
[339360761,1727471479461,-250.0,0.00034499,30]
[339360762,1727471479472,-661.91,0.0003452,33]
[339360763,1727471479481,-1128.82951632,0.00034533,4]
[339360764,1727471479491,-51082.643602,0.00034578,3]
[339360765,1727471479500,-306.0,0.00034646,2]
[339360766,1727471479510,-1000.0,0.000348,60]
[339360767,1727471479521,-1000.0,0.000348,3]
[339360768,1727471479531,-1000.0,0.000348,3]
[339360769,1727471479541,-1000.0,0.000348,3]
[339360770,1727471479551,-1000.0,0.000348,3]
[339360771,1727471479561,-1000.0,0.000348,3]
[339360772,1727471479572,-1000.0,0.000348,3]
[339360773,1727471479582,-1000.0,0.000348,3]
[339360774,1727471479593,-151.0,0.00034822,120]
[339360775,1727471479603,-525.0,0.00034824,2]
[339360776,1727471479612,-150.0,0.00034824,2]
[339360777,1727471479621,-1217.0,0.00034824,2]
[339360778,1727471479633,-2000.0,0.00035,35]
[339360779,1727471479644,-559.52174224,0.00035,120]
[339360780,1727471479654,-906.50217235,0.00035,120]
[339360781,1727471479664,-500.0,0.00035,60]
[339360782,1727471479675,-10430.86547713,0.00035,2]
[339360783,1727471479687,-9647.18832227,0.00035,30]
[339360784,1727471479698,-400.804446,0.00035,120]
[339360785,1727471479710,-1250.04445003,0.00035,2]
[339360786,1727471479720,-2000.0,0.00035,30]
[339360787,1727471479732,-155.0,0.00035,2]
[339360788,1727471479742,-661.91,0.00035068,34]
[339360789,1727471479752,-1330.67198935,0.000354,7]
[339360790,1727471479762,-846.8414319,0.00035499,35]
[339360791,1727471479772,-151.0,0.00035589,120]
[339360792,1727471479783,-306.0,0.00035591,2]
[339360793,1727471479793,-153.0,0.00035591,2]
[339360794,1727471479804,-153.0,0.00035591,2]
[339360795,1727471479814,-153.0,0.00035591,2]
[339360796,1727471479905,-153.0,0.00035591,2]
[339360797,1727471479915,-306.0,0.00035591,2]
[339360798,1727471479927,-661.91,0.00035616,35]
[339360799,1727471479938,-999.0,0.00035616,120]
[339360800,1727471479948,-400.0,0.00035616,60]
[339360801,1727471479959,-400.0,0.00035616,2]
[339360802,1727471479972,-797.790405,0.00035616,120]
[339360803,1727471479982,-65668.55,0.00035616,3]
[339360804,1727471479992,-102530.5,0.00035616,3]
[339360805,1727471480003,-85442.08,0.00035616,3]
[339360806,1727471480015,-153.0,0.0003563,2]
[339360807,1727471480027,-153.0,0.0003563,2]
[339360808,1727471480039,-153.0,0.0003563,2]
[339360809,1727471480049,-153.0,0.0003563,2]
[339360810,1727471480060,-159.0,0.0003578,120]
[339360811,1727471480071,-577.0,0.00035851,2]
[339360812,1727471480083,-500.0,0.0003596,10]
[339360813,1727471480093,-5000.0,0.00036,36]
[339360814,1727471480103,-2000.0,0.00036,36]
[339360815,1727471480116,-601.80421672,0.00036,120]
[339360816,1727471480125,-150.0,0.00036,120]
[339360817,1727471480142,-151.94,0.00036,30]
[339360818,1727471480151,-10185.84990623,0.00036,30]
[339360819,1727471480161,-577.0,0.00036,2]
[339360820,1727471480170,-250.0,0.00036,30]
[339360821,1727471480179,-263.0,0.00036,2]
[339360822,1727471480189,-263.0,0.00036,2]
[339360823,1727471480199,-263.0,0.00036,2]
[339360824,1727471480208,-577.0,0.00036125,2]
[339360825,1727471480219,-661.91,0.00036164,36]
[339360826,1727471480229,-259.18913043,0.0003624,2]
[339360827,1727471480239,-500.0,0.00036254,2]
[339360828,1727471480250,-577.0,0.00036399,2]
[339360829,1727471480260,-2943.32232083,0.0003641,2]
[339360830,1727471480270,-500.0,0.00036481,2]
[339360831,1727471480281,-254.88659401,0.000365,120]
[339360832,1727471480291,-500.0,0.00036529,2]
[339360833,1727471480302,-5000.0,0.00036529,14]
[339360834,1727471480312,-500.0,0.00036582,2]
[339360835,1727471480323,-500.0,0.00036595,2]
[339360836,1727471480332,-577.0,0.00036673,2]
[339360837,1727471480343,-661.91,0.00036712,37]
[339360838,1727471480353,-999.0,0.00036712,120]
[339360839,1727471480365,-500.0,0.00036774,2]
[339360840,1727471480375,-2169.088,0.000368,30]
[339360841,1727471480384,-435.72201,0.000368,120]
[339360842,1727471480393,-441.65201,0.000368,120]
[339360843,1727471480402,-500.0,0.00036801,2]
[339360844,1727471480413,-500.0,0.00036803,2]
[339360845,1727471480424,-577.0,0.00036947,2]
[339360846,1727471480434,-151.0,0.00036986,120]
[339360847,1727471480445,-2000.0,0.00037,37]
[339360848,1727471480455,-600.0,0.00037,15]
[339360849,1727471480466,-600.0,0.00037,15]
[339360850,1727471480477,-10006.19302924,0.00037,60]
[339360851,1727471480486,-3947.50428878,0.00037,120]
[339360852,1727471480496,-712.26239792,0.00037082,2]
[339360853,1727471480506,-500.0,0.00037127,2]
[339360854,1727471480515,-1330.67198935,0.000372,7]
[339360855,1727471480525,-151.0,0.00037233,120]
[339360856,1727471480534,-661.91,0.0003726,38]
[339360857,1727471480544,-423.128311,0.00037296,2]
[339360858,1727471480554,-500.0,0.0003731,2]
[339360859,1727471480563,-500.0,0.00037333,2]
[339360860,1727471480573,-577.0,0.00037356,2]
[339360861,1727471480582,-615.418663,0.00037471,14]
[339360862,1727471480592,-615.418663,0.00037471,14]
[339360863,1727471480601,-1000.0,0.000375,2]
[339360864,1727471480611,-500.0,0.000375,120]
[339360865,1727471480620,-535.91,0.000375,120]
[339360866,1727471480631,-500.0,0.00037549,2]
[339360867,1727471480640,-500.0,0.00037592,2]
[339360868,1727471480650,-500.0,0.00037604,10]
[339360869,1727471480660,-220.06948398,0.00037745,3]
[339360870,1727471480671,-661.91,0.00037808,39]
[339360871,1727471480682,-999.0,0.00037808,120]
[339360872,1727471480694,-525.0,0.00037824,2]
[339360873,1727471480703,-150.0,0.00037824,2]
[339360874,1727471480713,-1217.0,0.00037824,2]
[339360875,1727471480721,-500.0,0.00037885,2]
[339360876,1727471480732,-5000.0,0.00038,38]
[339360877,1727471480743,-2000.0,0.00038,38]
[339360878,1727471480753,-7814.99754257,0.00038,2]
[339360879,1727471480763,-6231.0,0.00038,30]
[339360880,1727471480774,-647.99967057,0.00038,10]
[339360881,1727471480786,-377.06522465,0.00038,120]
[339360882,1727471480797,-1000.0,0.00038,90]
[339360883,1727471480807,-200.0,0.00038,120]
[339360884,1727471480817,-828.599999,0.00038,120]
[339360885,1727471480827,-250.0,0.00038,30]
[339360886,1727471480838,-500.0,0.00038187,2]
[339360887,1727471480847,-152.79482226,0.00038275,25]
[339360888,1727471480857,-915.70278165,0.00038309,2]
[339360889,1727471480866,-500.0,0.00038322,2]
[339360890,1727471480876,-500.0,0.00038356,120]
[339360891,1727471480886,-582.85809817,0.00038356,120]
[339360892,1727471480896,-527.40961518,0.00038356,120]
[339360893,1727471480908,-500.0,0.00038356,2]
[339360894,1727471480921,-661.91,0.00038356,40]
[339360895,1727471480931,-400.0,0.00038356,60]
[339360896,1727471480941,-151.0,0.00038384,120]
[339360897,1727471480951,-500.0,0.00038479,2]
[339360898,1727471480961,-2287.49,0.000385,14]
[339360899,1727471480975,-500.0,0.00038787,2]
[339360900,1727471480985,-577.0,0.00038851,14]
[339360901,1727471480995,-2943.32232083,0.00038887,2]
[339360902,1727471481007,-805.18300605,0.000389,120]
[339360903,1727471481017,-4002.91151585,0.000389,30]
[339360904,1727471481026,-661.91,0.00038904,41]
[339360905,1727471481036,-999.0,0.00038904,120]
[339360906,1727471481047,-2000.0,0.00039,39]
[339360907,1727471481056,-529.2,0.00039,15]
[339360908,1727471481066,-918.5935196,0.00039,10]
[339360909,1727471481076,-11171.0,0.00039,120]
[339360910,1727471481085,-2000.0,0.00039,30]
[339360911,1727471481095,-150.0,0.00039,30]
[339360912,1727471481104,-399.751001,0.00039,120]
[339360913,1727471481114,-2120.0,0.00039,120]
[339360914,1727471481124,-1451.64217021,0.00039,11]
[339360915,1727471481134,-263.0,0.00039,2]
[339360916,1727471481144,-263.0,0.00039,2]
[339360917,1727471481154,-263.0,0.00039,2]
[339360918,1727471481164,-582.0,0.00039224,14]
[339360919,1727471481174,-629.32423331,0.00039248,10]
[339360920,1727471481183,-661.91,0.00039452,42]
[339360921,1727471481193,-151.0,0.00039644,120]
[339360922,1727471481202,-151.0,0.00039781,120]
[339360923,1727471481212,-451.2,0.000398,120]
[339360924,1727471481221,-300000.0,0.000398,30]
[339360925,1727471481230,-500.0,0.00039907,2]
[339360926,1727471481330,-5000.0,0.0004,40]
[339360927,1727471481342,-2000.0,0.0004,40]
[339360928,1727471481351,-201.0,0.0004,2]
[339360929,1727471481362,-198.82641907,0.0004,120]
[339360930,1727471481372,-500.0,0.0004,60]
[339360931,1727471481384,-7140.8584803,0.0004,120]
[339360932,1727471481394,-200.0,0.0004,120]
[339360933,1727471481404,-2695.48144716,0.0004,120]
[339360934,1727471481414,-1640.23890904,0.0004,120]
[339360935,1727471481423,-4861.17618553,0.0004,2]
[339360936,1727471481433,-10003.69400084,0.0004,2]
[339360937,1727471481443,-13200.02888609,0.0004,120]
[339360938,1727471481454,-508.54054271,0.0004,5]
[339360939,1727471481464,-3498.23516798,0.0004,30]
[339360940,1727471481473,-1000.0,0.0004,2]
[339360941,1727471481483,-150.0,0.0004,30]
[339360942,1727471481492,-713.0,0.0004,30]
[339360943,1727471481502,-300.582325,0.0004,10]
[339360944,1727471481511,-200.0,0.0004,30]
[339360945,1727471481521,-626.0864,0.0004,120]
[339360946,1727471481530,-3102.99388167,0.0004,120]
[339360947,1727471481540,-191.77449,0.0004,120]
[339360948,1727471481549,-200.0,0.0004,120]
[339360949,1727471481559,-1000.0,0.0004,120]
[339360950,1727471481569,-1000.0,0.0004,120]
[339360951,1727471481579,-1000.0,0.0004,120]
[339360952,1727471481588,-34091.63448726,0.0004,30]
[339360953,1727471481598,-377.86590835,0.0004,120]
[339360954,1727471481608,-610.57206133,0.0004,5]
[339360955,1727471481617,-1512.87111464,0.0004,30]
[339360956,1727471481626,-516.9965546,0.0004,120]
[339360957,1727471481635,-151.08784883,0.0004,120]
[339360958,1727471481644,-593.0,0.0004,120]
[339360959,1727471481654,-3604.0,0.0004,120]
[339360960,1727471481665,-500.0,0.0004,2]
[339360961,1727471481676,-2000.0,0.0004,20]
[339360962,1727471481687,-5000.0,0.0004,30]
[339360963,1727471481698,-5071.46995533,0.0004,30]
[339360964,1727471481708,-5000.0,0.0004,50]
[339360965,1727471481718,-3000.0,0.0004,30]
[339360966,1727471481729,-661.91,0.0004,43]
[339360967,1727471481739,-250.0,0.0004,30]
[339360968,1727471481749,-999.0,0.0004,120]
[339360969,1727471481760,-170.91804126,0.00040116,120]
[339360970,1727471481770,-577.0,0.00040345,14]
[339360971,1727471481780,-577.0,0.00040345,14]
[339360972,1727471481791,-1412.84234718,0.00040387,62]
[339360973,1727471481800,-500.0,0.00040519,2]
[339360974,1727471481810,-661.91,0.00040547,44]
[339360975,1727471481820,-50000.0,0.00040552,120]
[339360976,1727471481830,-505.30804451,0.00040651,2]
[339360977,1727471481839,-500.0,0.00040653,2]
[339360978,1727471481849,-159.0,0.0004067,120]
[339360979,1727471481859,-15000.0,0.0004075,14]
[339360980,1727471481869,-169.539806,0.00040808,2]
[339360981,1727471481879,-525.0,0.00040824,2]
[339360982,1727471481889,-150.0,0.00040824,2]
[339360983,1727471481898,-1217.0,0.00040824,2]
[339360984,1727471481908,-500.0,0.00040851,2]
[339360985,1727471481918,-33880.61760719,0.00040866,60]
[339360986,1727471481927,-500.96991861,0.0004087,2]
[339360987,1727471481936,-500.0,0.00040925,2]
[339360988,1727471481946,-400.0,0.00040952,2]
[339360989,1727471481955,-500.0,0.00040956,2]
[339360990,1727471481965,-2000.0,0.00041,41]
[339360991,1727471481977,-15000.0,0.00041,18]
[339360992,1727471481987,-2000.0,0.00041,3]
[339360993,1727471481996,-501.0,0.00041,30]
[339360994,1727471482006,-1000.0,0.00041,120]
[339360995,1727471482017,-10004.0,0.00041,90]
[339360996,1727471482027,-5000.0,0.00041,120]
[339360997,1727471482036,-5000.0,0.00041,120]
[339360998,1727471482047,-5000.0,0.00041,120]
[339360999,1727471482057,-5000.0,0.00041,120]
[339361000,1727471482066,-2900.0,0.00041,120]
[339361001,1727471482075,-197.23707053,0.00041,5]
[339361002,1727471482085,-1000.0,0.00041,2]
[339361003,1727471482094,-200.0,0.00041,30]
[339361004,1727471482104,-7321.4412542,0.00041,120]
[339361005,1727471482113,-11846.26394366,0.00041,30]
[339361006,1727471482122,-983.0746324,0.00041,120]
[339361007,1727471482132,-3158.17020061,0.00041,30]
[339361008,1727471482142,-3000.0,0.00041,7]
[339361009,1727471482152,-4610.2000453,0.00041,60]
[339361010,1727471482161,-591.78831099,0.00041034,2]
[339361011,1727471482172,-152.0,0.00041041,31]
[339361012,1727471482181,-152.0,0.00041041,31]
[339361013,1727471482191,-152.0,0.00041041,31]
[339361014,1727471482200,-152.0,0.00041041,31]
[339361015,1727471482209,-152.0,0.00041041,31]
[339361016,1727471482218,-152.0,0.00041041,31]
[339361017,1727471482228,-500.0,0.00041073,2]
[339361018,1727471482237,-3295.28,0.00041095,14]
[339361019,1727471482247,-3295.28,0.00041095,14]
[339361020,1727471482256,-3295.28,0.00041095,14]
[339361021,1727471482266,-3295.28,0.00041095,14]
[339361022,1727471482275,-3295.28,0.00041095,14]
[339361023,1727471482285,-3295.28,0.00041095,14]
[339361024,1727471482295,-3295.28,0.00041095,14]
[339361025,1727471482304,-3295.28,0.00041095,14]
[339361026,1727471482314,-3295.28,0.00041095,14]
[339361027,1727471482324,-3295.28,0.00041095,14]
[339361028,1727471482333,-3295.28,0.00041095,14]
[339361029,1727471482344,-3295.28,0.00041095,14]
[339361030,1727471482353,-3295.28,0.00041095,14]
[339361031,1727471482362,-3295.28,0.00041095,14]
[339361032,1727471482373,-3295.28,0.00041095,14]
[339361033,1727471482383,-3295.28,0.00041095,14]
[339361034,1727471482392,-3295.28,0.00041095,14]
[339361035,1727471482402,-3295.28,0.00041095,14]
[339361036,1727471482412,-3295.28,0.00041095,14]
[339361037,1727471482423,-3295.28,0.00041095,14]
[339361038,1727471482435,-3295.28,0.00041095,14]
[339361039,1727471482448,-3295.28,0.00041095,14]
[339361040,1727471482458,-3295.28,0.00041095,14]
[339361041,1727471482468,-3295.47069048,0.00041095,14]
[339361042,1727471482477,-661.91,0.00041095,45]
[339361043,1727471482487,-999.0,0.00041095,120]
[339361044,1727471482497,-803.63414059,0.00041095,30]
[339361045,1727471482574,-580.13297428,0.00041095,90]
[339361046,1727471482590,-400.0,0.00041096,60]
[339361047,1727471482600,-831.63,0.00041096,30]
[339361048,1727471482611,-180.2161995,0.00041096,2]
[339361049,1727471482622,-325.3240122,0.00041096,30]
[339361050,1727471482633,-160.0,0.00041096,10]
[339361051,1727471482643,-2872.26,0.000411,14]
[339361052,1727471482653,-151.0,0.00041178,120]
[339361053,1727471482663,-70819.22392804,0.000412,60]
[339361054,1727471482674,-2943.32232083,0.00041365,2]
[339361055,1727471482685,-732776.70298116,0.000414,30]
[339361056,1727471482695,-577.0,0.00041466,90]
[339361057,1727471482705,-2000.0,0.000415,32]
[339361058,1727471482714,-797.790405,0.00041553,120]
[339361059,1727471482724,-661.91,0.00041643,46]
[339361060,1727471482734,-577.0,0.00041839,90]
[339361061,1727471482744,-1959.62524903,0.000419,2]
[339361062,1727471482753,-332.31374492,0.00041999,5]
[339361063,1727471482765,-1000.0,0.00041999,120]
[339361064,1727471482776,-1737.1030834,0.00041999,120]
[339361065,1727471482786,-5000.0,0.00042,42]
[339361066,1727471482796,-2000.0,0.00042,42]
[339361067,1727471482805,-2779994.49553071,0.00042,30]
[339361068,1727471482816,-971095.30996309,0.00042,30]
[339361069,1727471482825,-305261.76291642,0.00042,30]
[339361070,1727471482945,-339.71266514,0.00042,30]
[339361071,1727471482957,-12016.12799046,0.00042,30]
[339361072,1727471483232,164.74704698,0.00017291,2]
[339361073,1727471483271,20.71850202,0.00017291,2]
[339361086,1727472330155,-203.0561925,0.00018076,2]
[339361087,1727472330179,-8.94227607,0.00018134,2]
[339361089,1727472345105,-159.16695553,0.00018134,2]
[339361090,1727472345126,-298.138362,0.00018135,2]
[339361091,1727472345147,-162.59821846,0.00018904,2]
[339361093,1727472439118,-239.52623719,0.00018904,2]
[339361148,1727472632451,-440.24994254,0.000183,2]
[339361150,1727472632461,-97.87554435,0.00018904,2]
[339361153,1727472632472,-2237.9405368,0.00018958,2]
[339361158,1727472632511,-626.78219594,0.00018958,2]
[339361162,1727472632523,-486.54876236,0.00018958,2]
[339361284,1727472638752,-10.54874025,0.00018958,2]
[339361286,1727472638763,-300.0,0.00019166,2]
[339361287,1727472638772,-300.0,0.00019166,2]
[339361288,1727472638782,-1448.828199,0.00019167,2]
[339361289,1727472638791,-1448.828199,0.00019167,2]
[339361290,1727472638800,-1448.828199,0.00019168,2]
[339361291,1727472638810,-1448.828199,0.00019168,2]
[339361292,1727472638819,-1448.828199,0.00019168,2]
[339361293,1727472638829,-1448.828199,0.00019168,2]
[339361294,1727472638838,-1448.828199,0.00019168,2]
[339361295,1727472638848,-1448.828199,0.00019168,2]
[339361296,1727472638858,-1448.828199,0.00019178,2]
[339361297,1727472638867,-1448.828199,0.00019178,2]
[339361298,1727472638876,-200.0,0.00019178,2]
[339361299,1727472638886,-961.6,0.00019178,2]
[339361300,1727472638895,-1448.828199,0.0001919,2]
[339361301,1727472638904,-1448.828199,0.0001919,2]
[339361302,1727472638914,-1448.828199,0.00019256,2]
[339361303,1727472638923,-1448.828199,0.00019256,2]
[339361304,1727472638932,-1448.828199,0.00019268,2]
[339361305,1727472638942,-1448.828199,0.00019268,2]
[339361306,1727472638951,-1448.828199,0.00019277,2]
[339361307,1727472638961,-1448.828199,0.00019277,2]
[339361308,1727472638970,-1448.828199,0.00019304,2]
[339361309,1727472638980,-1448.828204,0.00019304,2]
[339361310,1727472638990,-961.6,0.00019452,2]
[339361311,1727472638999,-961.6,0.00019726,2]
[339361312,1727472639009,-961.6,0.0002,2]
[339361313,1727472639019,-961.6,0.00020273,2]
[339361314,1727472639028,-320.25,0.000205,2]
[339361315,1727472639037,-534.35990473,0.00020546,2]
[339361316,1727472639048,-961.6,0.00020547,2]
[339361317,1727472639060,-961.6,0.00020821,2]
[339361318,1727472639069,-420.0,0.00020887,2]
[339361319,1727472639079,-150.0,0.00021,2]
[339361320,1727472639089,-961.6,0.00021095,2]
[339361321,1727472639098,-961.6,0.00021369,2]
[339361322,1727472639107,-961.6,0.00021643,2]
[339361323,1727472639116,-961.6,0.00021917,2]
[339361324,1727472639126,-2500.0,0.00021954,2]
[339361325,1727472639136,-2500.0,0.00021963,2]
[339361326,1727472639145,-2500.0,0.00021971,2]
[339361327,1727472639155,-2500.0,0.0002198,2]
[339361328,1727472639165,-2500.0,0.00021989,2]